[Event "71st RUS-ch Higher League 2018"]
[Site "Yaroslavl"]
[Date "2018.07.04"]
[Round "8"]
[White "Gordievsky, Dmitry"]
[Black "Pridorozhni, Aleksei"]
[Result "1-0"]
[ECO "A13"]
[WhiteElo "2641"]
[BlackElo "2589"]
[Annotator "ChessBase"]
[PlyCount "97"]
[EventDate "2018.06.26"]
[EventType "swiss"]
[EventCountry "RUS"]
[SourceTitle "playchess.com"]
[Source "ChessBase"]
[SourceQuality "1"]
[TimeControl "40/5400+30:1800+30"]

1. c4 {[%emt 0:00:02]} e6 {[%emt 0:00:00]} 2. Nf3 {[%emt 0:01:48]} f5 {[%emt 0:00:00]} 3. d4 {[%emt 0:05:39]} Nf6 {[%emt 0:00:00]} 4. Nc3 {[%emt 0:00:12]} Bb4 {[%emt 0:00:40]} 5. Bd2 {[%emt 0:02:16]} O-O {[%emt 0:00:42]} 6. g3 {[%emt 0:01:44]} c6 {[%emt 0:02:47]} 7. Qb3 {[%emt 0:02:49]} Ba5 {[%emt 0:00:51]} 8. Bg2 {[%emt 0:04:21]} Ne4 {[%emt 0:01:02]} 9. Nxe4 {[%emt 0:12:23]} fxe4 {[%emt 0:00:13]} 10. Bxa5 {[%emt 0:00:04]} Qxa5+ {[%emt 0:00:06]} 11. Nd2 {[%emt 0:00:04]} d5 {[%emt 0:00:39]} 12. Qe3 {[%emt 0:05:28]} Qb6 {[%emt 0:47:26]} 13. c5 {[%emt 0:17:02]} Qc7 {[%emt 0:04:58]} 14. f3 {[%emt 0:01:08]} e5 {[%emt 0:00:37]} 15. fxe4 {[%emt 0:01:40]} Be6 {[%emt 0:00:12]} 16. exd5 {[%emt 0:09:50]} Bxd5 {[%emt 0:00:36]} 17. Bxd5+ {[%emt 0:00:13]} cxd5 {[%emt 0:00:05]} 18. Qxe5 {[%emt 0:00:40]} Qxe5 {[%emt 0:01:00]} 19. dxe5 {[%emt 0:00:02]} Nd7 {[%emt 0:01:17]} 20. Nf3 {[%emt 0:00:22]} Nxc5 {[%emt 0:00:19]} 21. Rd1 {[%emt 0:02:48]} Rad8 {[%emt 0:05:04]} 22. O-O {[%emt 0:00:11]} Ne6 {[%emt 0:00:32]} 23. Rd2 {[%emt 0:01:54]} Rf7 {[%emt 0:04:21]} 24. Rfd1 {[%emt 0:00:11]} Rfd7 {[%emt 0:00:06]} 25. e3 {[%emt 0:04:56]} Nc5 {[%emt 0:01:59]} 26. Rc2 {[%emt 0:03:17]} Ne6 {[%emt 0:02:08]} 27. Nd4 {[%emt 0:00:23]} Re8 {[%emt 0:02:23]} 28. Rdc1 {[%emt 0:05:55]} Nf8 {[%emt 0:02:52]} 29. Nf3 {[%emt 0:01:08]} h6 {[%emt 0:03:07]} 30. Rc7 {[%emt 0:00:45]} a6 {[%emt 0:03:34]} 31. R1c5 {[%emt 0:00:49]} Ree7 {[%emt 0:05:28]} 32. Rxd7 {[%emt 0:00:12]} Rxd7 {[%emt 0:00:04]} 33. Rc8 {[%emt 0:00:14]} Re7 {[%emt 0:00:46]} 34. Rd8 {[%emt 0:00:10]} Rd7 {[%emt 0:00:45]} 35. Rb8 {[%emt 0:00:12]} Re7 {[%emt 0:00:06]} 36. Kf2 {[%emt 0:02:41]} Kf7 {[%emt 0:00:44]} 37. Nd4 {[%emt 0:03:47]} g6 {[%emt 0:01:13]} 38. b4 {[%emt 0:03:27]} Nd7 {[%emt 0:03:42]} 39. e6+ {[%emt 0:04:20]} Rxe6 {[%emt 0:00:05]} 40. Nxe6 {[%emt 0:00:00]} Nxb8 {[%emt 0:00:00]} 41. Nd8+ {[%emt 0:05:01]} Kf6 {[%emt 0:02:10]} 42. Nxb7 {[%emt 0:01:19]} Ke5 {[%emt 0:00:05]} 43. Nc5 {[%emt 0:05:37]} d4 {[%emt 0:00:30]} 44. e4 {[%emt 0:00:44]} Kd6 {[%emt 0:01:43]} 45. Ke2 {[%emt 0:02:04]} Kc6 {[%emt 0:00:26]} 46. Kd3 {[%emt 0:01:39]} Kb5 {[%emt 0:00:12]} 47. Kxd4 {[%emt 0:00:30]} Nc6+ {[%emt 0:00:19]} 48. Kd5 {[%emt 0:00:08]} Nxb4+ {[%emt 0:00:49]} 49. Kd6 {[%emt 0:00:04]} 1-0

[Event "71st RUS-ch Higher League 2018"]
[Site "Yaroslavl"]
[Date "2018.07.04"]
[Round "8"]
[White "Zvjaginsev, Vadim"]
[Black "Sjugirov, Sanan"]
[Result "1/2-1/2"]
[ECO "B51"]
[WhiteElo "2633"]
[BlackElo "2663"]
[Annotator "ChessBase"]
[PlyCount "92"]
[EventDate "2018.06.26"]
[EventType "swiss"]
[EventCountry "RUS"]
[SourceTitle "playchess.com"]
[Source "ChessBase"]
[SourceQuality "1"]
[TimeControl "40/5400+30:1800+30"]

1. e4 {[%emt 0:00:00]} c5 {[%emt 0:00:00]} 2. Nf3 {[%emt 0:00:00]} d6 {[%emt 0:00:19]} 3. Bb5+ {[%emt 0:00:00]} Nd7 {[%emt 0:01:02]} 4. O-O {[%emt 0:00:00]} a6 {[%emt 0:00:53]} 5. Bxd7+ {[%emt 0:00:06]} Bxd7 {[%emt 0:00:20]} 6. Re1 {[%emt 0:00:12]} Bg4 {[%emt 0:01:21]} 7. c3 {[%emt 0:00:28]} e6 {[%emt 0:08:00]} 8. d4 {[%emt 0:00:56]} Nf6 {[%emt 0:04:20]} 9. dxc5 {[%emt 0:01:05]} dxc5 {[%emt 0:00:45]} 10. Qxd8+ {[%emt 0:00:35]} Rxd8 {[%emt 0:00:08]} 11. Ne5 {[%emt 0:00:07]} Bh5 {[%emt 0:02:32]} 12. f3 {[%emt 0:01:35]} Nd7 {[%emt 0:01:42]} 13. Nxd7 {[%emt 0:00:58]} Rxd7 {[%emt 0:07:09]} 14. Be3 {[%emt 0:03:20]} Be7 {[%emt 0:07:05]} 15. Nd2 {[%emt 0:03:47]} f6 {[%emt 0:01:57]} 16. a4 {[%emt 0:03:20]} O-O {[%emt 0:10:29]} 17. a5 {[%emt 0:00:26]} Rfd8 {[%emt 0:03:12]} 18. Nc4 {[%emt 0:03:34]} Rd3 {[%emt 0:04:38]} 19. Nb6 {[%emt 0:11:53]} Be8 {[%emt 0:11:52]} 20. Na4 {[%emt 0:05:05]} c4 {[%emt 0:01:17]} 21. Kf1 {[%emt 0:08:38]} Kf7 {[%emt 0:02:42]} 22. Nb6 {[%emt 0:00:35]} Bb5 {[%emt 0:00:26]} 23. Ke2 {[%emt 0:00:44]} f5 {[%emt 0:12:56]} 24. exf5 {[%emt 0:01:33]} exf5 {[%emt 0:00:07]} 25. Red1 {[%emt 0:13:11]} g5 {[%emt 0:08:51]} 26. Rxd3 {[%emt 0:01:42]} Rxd3 {[%emt 0:02:22]} 27. Rd1 {[%emt 0:02:32]} Rxd1 {[%emt 0:02:10]} 28. Kxd1 {[%emt 0:00:15]} f4 {[%emt 0:00:38]} 29. Bd4 {[%emt 0:01:38]} Ke6 {[%emt 0:00:29]} 30. Ke1 {[%emt 0:00:42]} h5 {[%emt 0:00:20]} 31. h3 {[%emt 0:02:08]} Bd8 {[%emt 0:01:29]} 32. Kf2 {[%emt 0:01:21]} Bc7 {[%emt 0:00:47]} 33. Ke1 {[%emt 0:00:34]} Bd8 {[%emt 0:00:21]} 34. Kf2 {[%emt 0:00:04]} Kf5 {[%emt 0:00:04]} 35. Ke1 {[%emt 0:00:34]} g4 {[%emt 0:01:30]} 36. hxg4+ {[%emt 0:00:36]} hxg4 {[%emt 0:00:04]} 37. Kf2 {[%emt 0:01:12]} Bh4+ {[%emt 0:00:19]} 38. Ke2 {[%emt 0:00:52]} Bd8 {[%emt 0:01:15]} 39. Kf2 {[%emt 0:00:08]} Kg5 {[%emt 0:01:03]} 40. g3 {[%emt 0:00:00]} fxg3+ {[%emt 0:00:00]} 41. Kxg3 {[%emt 0:04:43]} Bc7+ {[%emt 0:02:27]} 42. Kf2 {[%emt 0:00:06]} gxf3 {[%emt 0:16:10]} 43. Kxf3 {[%emt 0:00:34]} Kf5 {[%emt 0:00:15]} 44. Be3 {[%emt 0:11:49]} Bc6+ {[%emt 0:00:11]} 45. Ke2 {[%emt 0:00:26]} Ke4 {[%emt 0:00:10]} 46. Kd2 {[%emt 0:00:45]} Bxb6 {[%emt 0:00:23]} 1/2-1/2

[Event "71st RUS-ch Higher League 2018"]
[Site "Yaroslavl"]
[Date "2018.07.04"]
[Round "8"]
[White "Romanov, Evgeny"]
[Black "Shaposhnikov, Evgeny"]
[Result "1/2-1/2"]
[ECO "B38"]
[WhiteElo "2628"]
[BlackElo "2572"]
[Annotator "ChessBase"]
[PlyCount "80"]
[EventDate "2018.06.26"]
[EventType "swiss"]
[EventCountry "RUS"]
[SourceTitle "playchess.com"]
[Source "ChessBase"]
[SourceQuality "1"]
[TimeControl "40/5400+30:1800+30"]

1. c4 {[%emt 0:07:08]} c5 {[%emt 0:00:00]} 2. Nf3 {[%emt 0:00:10]} Nc6 {[%emt 0:00:00]} 3. d4 {[%emt 0:00:13]} cxd4 {[%emt 0:00:02]} 4. Nxd4 {[%emt 0:00:05]} g6 {[%emt 0:00:27]} 5. e4 {[%emt 0:00:18]} Bg7 {[%emt 0:00:12]} 6. Be3 {[%emt 0:00:09]} Nf6 {[%emt 0:00:16]} 7. Nc3 {[%emt 0:00:09]} d6 {[%emt 0:00:32]} 8. Be2 {[%emt 0:00:08]} O-O {[%emt 0:00:26]} 9. O-O {[%emt 0:00:17]} Nxd4 {[%emt 0:00:05]} 10. Bxd4 {[%emt 0:00:08]} Bd7 {[%emt 0:00:23]} 11. Qd3 {[%emt 0:00:56]} Bc6 {[%emt 0:02:31]} 12. b4 {[%emt 0:00:50]} b6 {[%emt 0:07:11]} 13. f4 {[%emt 0:07:13]} Rc8 {[%emt 0:06:54]} 14. Rad1 {[%emt 0:05:00]} e6 {[%emt 0:05:27]} 15. Bf2 {[%emt 0:12:38]} Qc7 {[%emt 0:04:22]} 16. Bh4 {[%emt 0:01:57]} Rfe8 {[%emt 0:04:56]} 17. Bf3 {[%emt 0:08:54]} Nd7 {[%emt 0:01:57]} 18. e5 {[%emt 0:17:59]} Bxf3 {[%emt 0:00:52]} 19. Qxf3 {[%emt 0:00:10]} Qxc4 {[%emt 0:02:40]} 20. Ne4 {[%emt 0:01:43]} d5 {[%emt 0:03:09]} 21. Nd6 {[%emt 0:00:07]} Qxb4 {[%emt 0:00:06]} 22. Be1 {[%emt 0:10:23]} Qa4 {[%emt 0:02:44]} 23. Rd3 {[%emt 0:00:38]} Nc5 {[%emt 0:01:37]} 24. Ra3 {[%emt 0:00:12]} Qd7 {[%emt 0:00:18]} 25. h4 {[%emt 0:03:01]} f5 {[%emt 0:07:05]} 26. h5 {[%emt 0:02:07]} Ne4 {[%emt 0:01:17]} 27. Nxe8 {[%emt 0:00:07]} Rxe8 {[%emt 0:00:15]} 28. Qe2 {[%emt 0:01:13]} Rc8 {[%emt 0:06:25]} 29. hxg6 {[%emt 0:00:33]} hxg6 {[%emt 0:00:09]} 30. g4 {[%emt 0:00:55]} Rc4 {[%emt 0:11:12]} 31. gxf5 {[%emt 0:00:49]} exf5 {[%emt 0:02:32]} 32. Qg2 {[%emt 0:02:58]} Rc6 {[%emt 0:00:32]} 33. Rh3 {[%emt 0:02:22]} d4 {[%emt 0:00:22]} 34. Qb2 {[%emt 0:03:19]} Qd5 {[%emt 0:01:34]} 35. Rd3 {[%emt 0:00:34]} Bf8 {[%emt 0:02:02]} 36. Bb4 {[%emt 0:03:08]} Bxb4 {[%emt 0:07:09]} 37. Qxb4 {[%emt 0:00:07]} Nc3 {[%emt 0:00:45]} 38. Rf2 {[%emt 0:05:28]} Nb5 {[%emt 0:07:57]} 39. Rg2 {[%emt 0:03:05]} Qe4 {[%emt 0:04:47]} 40. Qd2 {[%emt 0:00:00]} Kg7 {[%emt 0:00:00]} 1/2-1/2

[Event "71st RUS-ch Higher League 2018"]
[Site "Yaroslavl"]
[Date "2018.07.04"]
[Round "8"]
[White "Alekseev, Evgeny"]
[Black "Sychev, Klementy"]
[Result "1/2-1/2"]
[ECO "C50"]
[WhiteElo "2627"]
[BlackElo "2527"]
[Annotator "ChessBase"]
[PlyCount "87"]
[EventDate "2018.06.26"]
[EventType "swiss"]
[EventCountry "RUS"]
[SourceTitle "playchess.com"]
[Source "ChessBase"]
[SourceQuality "1"]
[TimeControl "40/5400+30:1800+30"]

1. e4 {[%emt 0:00:00]} e5 {[%emt 0:00:19]} 2. Nf3 {[%emt 0:00:00]} Nc6 {[%emt 0:00:03]} 3. Bc4 {[%emt 0:00:29]} Nf6 {[%emt 0:00:14]} 4. d3 {[%emt 0:00:28]} Bc5 {[%emt 0:00:07]} 5. O-O {[%emt 0:01:01]} O-O {[%emt 0:00:12]} 6. h3 {[%emt 0:01:26]} d6 {[%emt 0:08:41]} 7. c3 {[%emt 0:01:57]} Ne7 {[%emt 0:00:58]} 8. Re1 {[%emt 0:05:15]} Bb6 {[%emt 0:01:07]} 9. Nbd2 {[%emt 0:02:58]} Ng6 {[%emt 0:04:22]} 10. Nf1 {[%emt 0:08:17]} c6 {[%emt 0:00:45]} 11. Bb3 {[%emt 0:02:34]} h6 {[%emt 0:01:08]} 12. Ng3 {[%emt 0:02:56]} d5 {[%emt 0:01:17]} 13. exd5 {[%emt 0:02:08]} Nxd5 {[%emt 0:00:38]} 14. d4 {[%emt 0:00:08]} exd4 {[%emt 0:00:04]} 15. Nxd4 {[%emt 0:00:04]} Be6 {[%emt 0:00:16]} 16. Bc2 {[%emt 0:10:11]} Bd7 {[%emt 0:35:03]} 17. Ndf5 {[%emt 0:06:31]} Re8 {[%emt 0:20:12]} 18. Bd2 {[%emt 0:19:11]} Rxe1+ {[%emt 0:03:40]} 19. Qxe1 {[%emt 0:00:14]} Qc7 {[%emt 0:06:51]} 20. Qf1 {[%emt 0:03:49]} Re8 {[%emt 0:02:17]} 21. Re1 {[%emt 0:00:27]} Rxe1 {[%emt 0:04:15]} 22. Qxe1 {[%emt 0:02:06]} Nf6 {[%emt 0:01:56]} 23. c4 {[%emt 0:11:39]} Nh4 {[%emt 0:03:13]} 24. Qe7 {[%emt 0:03:13]} Nxf5 {[%emt 0:00:23]} 25. Nxf5 {[%emt 0:00:08]} Bxf5 {[%emt 0:01:03]} 26. Qxc7 {[%emt 0:00:10]} Bxc7 {[%emt 0:00:01]} 27. Bxf5 {[%emt 0:00:07]} c5 {[%emt 0:01:33]} 28. Bc3 {[%emt 0:03:04]} Kf8 {[%emt 0:01:25]} 29. g3 {[%emt 0:00:29]} Ke7 {[%emt 0:00:49]} 30. Kg2 {[%emt 0:02:07]} g6 {[%emt 0:00:21]} 31. Bc2 {[%emt 0:02:34]} h5 {[%emt 0:00:36]} 32. Bd2 {[%emt 0:03:57]} Be5 {[%emt 0:00:09]} 33. b3 {[%emt 0:00:18]} Bd4 {[%emt 0:00:57]} 34. f4 {[%emt 0:01:04]} Ke6 {[%emt 0:00:38]} 35. Kf3 {[%emt 0:01:02]} b6 {[%emt 0:00:38]} 36. g4 {[%emt 0:01:06]} hxg4+ {[%emt 0:00:05]} 37. hxg4 {[%emt 0:00:03]} Ne8 {[%emt 0:00:33]} 38. f5+ {[%emt 0:00:21]} gxf5 {[%emt 0:00:09]} 39. Bxf5+ {[%emt 0:00:05]} Ke7 {[%emt 0:01:37]} 40. Ke4 {[%emt 0:00:00]} Nf6+ {[%emt 0:00:00]} 41. Kd3 {[%emt 0:04:07]} Ne8 {[%emt 0:07:25]} 42. Bf4 {[%emt 0:03:29]} Nd6 {[%emt 0:00:17]} 43. b4 {[%emt 0:01:06]} f6 {[%emt 0:01:05]} 44. Bxd6+ {[%emt 0:01:33]} 1/2-1/2

[Event "71st RUS-ch Higher League 2018"]
[Site "Yaroslavl"]
[Date "2018.07.04"]
[Round "8"]
[White "Ponkratov, Pavel"]
[Black "Lobanov, Sergei"]
[Result "1-0"]
[ECO "A06"]
[WhiteElo "2622"]
[BlackElo "2521"]
[Annotator "ChessBase"]
[PlyCount "59"]
[EventDate "2018.06.26"]
[EventType "swiss"]
[EventCountry "RUS"]
[SourceTitle "playchess.com"]
[Source "ChessBase"]
[SourceQuality "1"]
[TimeControl "40/5400+30:1800+30"]

1. Nf3 {[%emt 0:00:00]} d5 {[%emt 0:00:00]} 2. g3 {[%emt 0:00:00]} Bg4 {[%emt 0:01:13]} 3. Bg2 {[%emt 0:00:00]} Nd7 {[%emt 0:00:04]} 4. h3 {[%emt 0:00:00]} Bh5 {[%emt 0:00:55]} 5. O-O {[%emt 0:00:31]} e6 {[%emt 0:01:02]} 6. d3 {[%emt 0:01:17]} Ngf6 7. c4 Be7 {[%emt 0:04:04]} 8. cxd5 {[%emt 0:03:08]} exd5 {[%emt 0:00:04]} 9. Nh4 {[%emt 0:02:14]} c6 {[%emt 0:19:43]} 10. Nf5 {[%emt 0:37:30]} O-O {[%emt 0:03:27]} 11. g4 {[%emt 0:00:50]} Bg6 {[%emt 0:00:14]} 12. Nxe7+ {[%emt 0:00:05]} Qxe7 {[%emt 0:00:02]} 13. f4 {[%emt 0:00:13]} h6 {[%emt 0:00:46]} 14. e3 {[%emt 0:01:16]} Ne8 {[%emt 0:08:02]} 15. f5 {[%emt 0:05:57]} Bh7 {[%emt 0:00:05]} 16. Nc3 {[%emt 0:00:04]} Nd6 {[%emt 0:01:01]} 17. Rb1 {[%emt 0:06:46]} Ne5 {[%emt 0:23:07]} 18. b3 {[%emt 0:04:30]} Rad8 {[%emt 0:00:56]} 19. Rb2 {[%emt 0:01:00]} g5 {[%emt 0:06:33]} 20. Re2 {[%emt 0:07:06]} f6 {[%emt 0:00:44]} 21. d4 {[%emt 0:01:27]} Ne4 {[%emt 0:19:33]} 22. Nxe4 {[%emt 0:03:40]} dxe4 {[%emt 0:00:01]} 23. Bxe4 {[%emt 0:00:10]} Nf7 {[%emt 0:05:17]} 24. Qc2 {[%emt 0:00:27]} Rfe8 {[%emt 0:00:52]} 25. Bf3 {[%emt 0:00:05]} Kg7 {[%emt 0:02:53]} 26. Bb2 {[%emt 0:00:40]} Nd6 {[%emt 0:00:01]} 27. e4 {[%emt 0:01:27]} Nb5 {[%emt 0:00:11]} 28. e5 {[%emt 0:00:31]} Nxd4 {[%emt 0:00:20]} 29. Bxd4 {[%emt 0:00:14]} Rxd4 {[%emt 0:00:04]} 30. exf6+ {[%emt 0:00:07]} 1-0

[Event "71st RUS-ch Higher League 2018"]
[Site "Yaroslavl"]
[Date "2018.07.04"]
[Round "8"]
[White "Antipov, Mikhail Al"]
[Black "Gogolev, Artem"]
[Result "1-0"]
[ECO "A05"]
[WhiteElo "2616"]
[BlackElo "2407"]
[Annotator "RC"]
[PlyCount "75"]
[EventDate "2018.06.26"]
[EventType "swiss"]
[EventCountry "RUS"]
[SourceTitle "playchess.com"]
[Source "ChessBase"]
[SourceQuality "1"]
[TimeControl "40/5400+30:1800+30"]

1. Nf3 {[%emt 0:00:00]} Nf6 {[%emt 0:01:19]} 2. c4 {[%emt 0:00:00]} e6 {[%emt 0:00:29]} 3. g3 {[%emt 0:00:00]} d5 {[%emt 0:00:07]} 4. Bg2 {[%emt 0:00:05]} d4 {[%emt 0:01:30]} 5. O-O {[%emt 0:00:25]} c5 {[%emt 0:00:49]} 6. d3 {[%emt 0:00:43]} Nc6 {[%emt 0:00:29]} 7. e3 {[%emt 0:34:26]} Be7 {[%emt 0:04:12]} 8. exd4 {[%emt 0:00:52]} cxd4 {[%emt 0:00:10]} 9. a3 {[%emt 0:02:23]} a5 {[%emt 0:01:29]} 10. Re1 {[%emt 0:00:58]} Nd7 {[%emt 0:01:43]} 11. Nfd2 {[%emt 0:05:24]} O-O {[%emt 0:02:59]} 12. f4 {[%emt 0:00:08]} Qc7 {[%emt 0:01:25]} 13. b3 {[%emt 0:03:54]} Rb8 {[%emt 0:03:59]} 14. Qc2 {[%emt 0:04:03]} b6 {[%emt 0:04:05]} 15. Nf3 {[%emt 0:06:51]} b5 {[%emt 0:06:17]} 16. Nbd2 {[%emt 0:04:13]} bxc4 {[%emt 0:05:47]} 17. Nxc4 {[%emt 0:00:29]} Nc5 {[%emt 0:01:26]} 18. Rb1 {[%emt 0:00:49]} Qa7 {[%emt 0:13:46]} 19. Bd2 {[%emt 0:03:14]} a4 {[%emt 0:09:51]} 20. b4 {[%emt 0:03:09]} Nb3 {[%emt 0:01:07]} 21. f5 {[%emt 0:03:01]} Rb5 {[%emt 0:07:57]} 22. fxe6 {[%emt 0:05:15]} Bxe6 {[%emt 0:00:43]} 23. Bf4 {[%emt 0:00:22]} Qa6 {[%emt 0:02:35]} 24. Nfd2 {[%emt 0:06:05]} Nxd2 {[%emt 0:02:34]} 25. Qxd2 {[%emt 0:00:28]} Na7 {[%emt 0:03:38]} 26. Rbc1 {[%emt 0:01:38]} h6 {[%emt 0:01:31]} 27. h4 {[%emt 0:04:00]} Rc8 {[%emt 0:02:21]} 28. Be5 {[%emt 0:01:51]} Bf8 {[%emt 0:03:28]} 29. Bxd4 {[%emt 0:03:37]} Rd8 {[%emt 0:00:17]} 30. Qf2 {[%emt 0:01:18]} Nc6 {[%emt 0:01:25]} 31. Bb6 {[%emt 0:01:46]} Rc8 {[%emt 0:03:41]} 32. Bc5 {[%emt 0:00:18]} Bxc5 {[%emt 0:02:00]} 33. bxc5 {[%emt 0:00:02]} Bxc4 {[%emt 0:00:59]} 34. Rxc4 {[%emt 0:00:00]} Rb3 {[%emt 0:00:13]} 35. Bd5 {[%emt 0:01:49]} Rf8 {[%emt 0:02:24]} 36. Rg4 {[%emt 0:00:53]} Qc8 {[%emt 0:02:48]} 37. Rg6 {[%emt 0:00:39]} Rxd3 {[%emt 0:00:51]} 38. Qf6 {[%emt 0:00:34]} 1-0

[Event "71st RUS-ch Higher League 2018"]
[Site "Yaroslavl"]
[Date "2018.07.04"]
[Round "8"]
[White "Kobalia, Mikhail"]
[Black "Dreev, Aleksey"]
[Result "1-0"]
[ECO "B13"]
[WhiteElo "2608"]
[BlackElo "2657"]
[Annotator "ChessBase"]
[PlyCount "63"]
[EventDate "2018.06.26"]
[EventType "swiss"]
[EventCountry "RUS"]
[SourceTitle "playchess.com"]
[Source "ChessBase"]
[SourceQuality "1"]
[TimeControl "40/5400+30:1800+30"]

1. e4 {[%emt 0:00:00]} c6 {[%emt 0:00:51]} 2. d4 {[%emt 0:00:00]} d5 {[%emt 0:00:04]} 3. exd5 {[%emt 0:00:00]} cxd5 {[%emt 0:00:07]} 4. c4 {[%emt 0:00:01]} Nf6 {[%emt 0:00:13]} 5. Nc3 {[%emt 0:00:05]} Nc6 {[%emt 0:00:05]} 6. Nf3 {[%emt 0:00:15]} Bg4 {[%emt 0:01:17]} 7. Bg5 {[%emt 0:00:26]} Ne4 {[%emt 0:07:07]} 8. Be3 {[%emt 0:00:35]} e6 {[%emt 0:05:00]} 9. cxd5 {[%emt 0:01:18]} Nxc3 {[%emt 0:02:04]} 10. bxc3 {[%emt 0:00:07]} Qxd5 {[%emt 0:00:09]} 11. Rb1 {[%emt 0:06:49]} Be7 {[%emt 0:14:23]} 12. Rxb7 {[%emt 0:05:27]} O-O {[%emt 0:01:06]} 13. Rb5 {[%emt 0:03:27]} Qxa2 {[%emt 0:02:53]} 14. Bd3 {[%emt 0:00:28]} Qa3 {[%emt 0:16:17]} 15. O-O {[%emt 0:07:43]} Rfc8 {[%emt 0:11:02]} 16. h3 {[%emt 0:07:14]} a6 {[%emt 0:02:26]} 17. Rb6 {[%emt 0:09:17]} Bf5 {[%emt 0:01:45]} 18. Bxf5 {[%emt 0:02:28]} exf5 {[%emt 0:00:02]} 19. c4 {[%emt 0:05:32]} Bd8 {[%emt 0:05:15]} 20. Rb3 {[%emt 0:01:37]} Qa2 {[%emt 0:04:57]} 21. c5 {[%emt 0:12:26]} Bf6 {[%emt 0:08:34]} 22. d5 {[%emt 0:06:13]} f4 {[%emt 0:04:23]} 23. Bc1 {[%emt 0:03:56]} Rd8 {[%emt 0:03:08]} 24. d6 {[%emt 0:06:29]} a5 {[%emt 0:00:02]} 25. Rb6 {[%emt 0:00:54]} Nb4 {[%emt 0:01:14]} 26. Bd2 {[%emt 0:03:13]} Qc4 {[%emt 0:03:02]} 27. Qc1 {[%emt 0:01:40]} Nc2 {[%emt 0:01:42]} 28. Qb1 {[%emt 0:07:38]} Qxc5 {[%emt 0:01:10]} 29. Rc1 {[%emt 0:00:02]} Rac8 {[%emt 0:00:34]} 30. Rb5 {[%emt 0:00:20]} Qc6 {[%emt 0:03:13]} 31. Bxa5 {[%emt 0:00:01]} Rxd6 {[%emt 0:00:19]} 32. Rb8 {[%emt 0:01:10]} 1-0

[Event "71st RUS-ch Higher League 2018"]
[Site "Yaroslavl"]
[Date "2018.07.04"]
[Round "8"]
[White "Kokarev, Dmitry"]
[Black "Goganov, Aleksey"]
[Result "1/2-1/2"]
[ECO "C65"]
[WhiteElo "2603"]
[BlackElo "2576"]
[Annotator "ChessBase"]
[PlyCount "81"]
[EventDate "2018.06.26"]
[EventType "swiss"]
[EventCountry "RUS"]
[SourceTitle "playchess.com"]
[Source "ChessBase"]
[SourceQuality "1"]
[TimeControl "40/5400+30:1800+30"]

1. e4 {[%emt 0:00:00]} e5 {[%emt 0:00:00]} 2. Nf3 {[%emt 0:00:00]} Nc6 {[%emt 0:00:00]} 3. Bb5 {[%emt 0:00:00]} Nf6 {[%emt 0:00:00]} 4. d3 {[%emt 0:00:00]} Bc5 {[%emt 0:00:00]} 5. Bxc6 {[%emt 0:00:05]} dxc6 {[%emt 0:00:00]} 6. Nbd2 {[%emt 0:00:12]} Be6 {[%emt 0:00:22]} 7. O-O {[%emt 0:00:29]} Nd7 {[%emt 0:00:20]} 8. Nb3 {[%emt 0:00:18]} Be7 {[%emt 0:00:35]} 9. d4 {[%emt 0:02:08]} f6 {[%emt 0:03:43]} 10. dxe5 {[%emt 0:03:45]} Nxe5 {[%emt 0:00:55]} 11. Nxe5 {[%emt 0:00:56]} Qxd1 {[%emt 0:00:11]} 12. Rxd1 {[%emt 0:00:05]} fxe5 {[%emt 0:00:05]} 13. Be3 {[%emt 0:19:11]} b6 {[%emt 0:02:37]} 14. Nc1 {[%emt 0:00:27]} Bf6 {[%emt 0:02:58]} 15. Nd3 {[%emt 0:06:56]} O-O-O {[%emt 0:04:07]} 16. f3 {[%emt 0:04:16]} c5 {[%emt 0:04:49]} 17. Nf2 {[%emt 0:06:23]} Rdg8 {[%emt 0:17:34]} 18. Ng4 {[%emt 0:02:47]} h5 {[%emt 0:00:49]} 19. Nxf6 {[%emt 0:00:49]} gxf6 {[%emt 0:00:03]} 20. Kf2 {[%emt 0:05:12]} h4 {[%emt 0:00:18]} 21. Rd2 {[%emt 0:01:02]} a5 {[%emt 0:02:50]} 22. a3 {[%emt 0:02:02]} Rh7 {[%emt 0:00:06]} 23. Rh1 {[%emt 0:02:25]} Bd7 {[%emt 0:01:01]} 24. Rg1 {[%emt 0:06:01]} Kd8 {[%emt 0:01:57]} 25. Rdd1 {[%emt 0:08:55]} Ke7 {[%emt 0:01:30]} 26. g4 {[%emt 0:00:44]} hxg3+ {[%emt 0:00:06]} 27. hxg3 {[%emt 0:00:05]} Ba4 {[%emt 0:00:40]} 28. Rc1 {[%emt 0:05:10]} Rh2+ {[%emt 0:01:13]} 29. Rg2 {[%emt 0:00:10]} Rgh8 {[%emt 0:00:09]} 30. c3 {[%emt 0:01:28]} c4 {[%emt 0:02:02]} 31. g4 {[%emt 0:00:33]} Ke6 {[%emt 0:00:27]} 32. Rcg1 {[%emt 0:00:24]} R8h7 {[%emt 0:01:44]} 33. g5 {[%emt 0:03:00]} fxg5 {[%emt 0:00:35]} 34. Bxg5 {[%emt 0:00:12]} Rxg2+ {[%emt 0:00:23]} 35. Rxg2 {[%emt 0:00:22]} Rg7 {[%emt 0:00:21]} 36. Bh4 {[%emt 0:02:39]} Rxg2+ {[%emt 0:00:09]} 37. Kxg2 {[%emt 0:00:04]} Be8 {[%emt 0:00:37]} 38. Kf2 {[%emt 0:00:07]} a4 {[%emt 0:00:09]} 39. Ke3 {[%emt 0:00:06]} b5 {[%emt 0:00:05]} 40. Bg3 {[%emt 0:00:00]} c6 {[%emt 0:00:00]} 41. Bf2 {[%emt 0:00:16]} 1/2-1/2